bitfinex/quotes_BTCUSD_20251230
["timestamp","ask_amount","ask_price","bid_price","bid_amount"]
[1767126063251,0.01133632,88212.0,88204.0,0.010811]
[1767126063571,0.59880309,88214.0,88204.0,0.010811]
[1767126063768,0.58746703,88214.0,88204.0,0.010811]
[1767126068548,0.59880309,88214.0,88204.0,0.010811]
[1767126068754,0.58746703,88214.0,88204.0,0.010811]
[1767126070494,0.056677,88220.0,88204.0,0.010811]
[1767126070692,0.01133555,88218.0,88205.0,0.01133722]
[1767126071036,0.50827403,88220.0,88214.0,0.000549]
[1767126071238,0.01133555,88218.0,88214.0,0.000549]
[1767126071420,0.15538555,88218.0,88205.0,0.01133722]
[1767126072553,0.01133568,88217.0,88204.0,0.02214835]
[1767126072935,0.02269504,88222.0,88204.0,0.02214835]
[1767126072936,0.0001481,88231.0,88215.0,0.01133594]
[1767126073163,0.0001481,88231.0,88223.0,0.01133491]
[1767126073334,0.0001481,88231.0,88222.0,0.15606504]
[1767126073835,0.0001481,88231.0,88222.0,0.14473]
[1767126074211,0.0001481,88231.0,88216.0,0.14473]
[1767126074412,0.01133414,88229.0,88216.0,0.14473]
[1767126074615,0.46293104,88230.0,88216.0,0.15606581]
[1767126075014,0.46293104,88230.0,88214.0,0.01136]
[1767126075015,0.01133465,88225.0,88214.0,0.01136]
[1767126075219,0.15538491,88223.0,88207.0,0.01133696]
[1767126075402,0.45159703,88220.0,88212.0,0.01136]
[1767126075607,0.14405,88221.0,88212.0,0.01136]
[1767126075978,0.14405,88221.0,88212.0,0.02269632]
[1767126076180,0.45159703,88222.0,88221.0,0.000549]
[1767126076383,0.45174513,88231.0,88222.0,0.00055]
[1767126076638,0.01136,88227.0,88222.0,0.13913]
[1767126076814,0.01136,88227.0,88222.0,0.13858]
[1767126077538,0.01133401,88230.0,88222.0,0.13858]
[1767126077742,0.01133401,88230.0,88217.0,0.01133568]
[1767126077954,0.01133401,88230.0,88217.0,0.14991568]
[1767126078114,0.01133414,88229.0,88217.0,0.13858]
[1767126078323,0.45174513,88231.0,88217.0,0.14991568]
[1767126078529,0.01133401,88230.0,88217.0,0.13858]
[1767126079633,0.01133414,88229.0,88217.0,0.13858]
[1767126079829,0.01133401,88230.0,88217.0,0.14991568]
[1767126080445,0.01133427,88228.0,88217.0,0.13858]
[1767126080770,0.01133401,88230.0,88217.0,0.14991568]
[1767126081570,0.01133401,88230.0,88217.0,0.13858]
[1767126082070,0.01133414,88229.0,88217.0,0.14991568]
[1767126082727,0.01133414,88229.0,88217.0,0.13858]
[1767126083488,0.46334305,88230.0,88217.0,0.13858]
[1767126083689,0.45200904,88230.0,88218.0,0.01133555]
[1767126084191,0.46334305,88230.0,88217.0,0.14991568]
[1767126084398,0.45200904,88230.0,88217.0,0.14991568]
[1767126085023,0.46334305,88230.0,88217.0,0.14991568]
[1767126086285,0.45200904,88230.0,88218.0,0.01133555]
[1767126086494,0.45200904,88230.0,88219.0,0.01133542]
[1767126086664,0.00035553,88230.0,88217.0,0.01133568]
[1767126086865,0.00035553,88230.0,88218.0,0.13858]
[1767126087617,0.01168954,88230.0,88216.0,0.01133581]
[1767126087828,0.01168954,88230.0,88216.0,0.14991581]
[1767126088244,0.01168954,88230.0,88217.0,0.01133568]
[1767126088824,0.01133414,88229.0,88216.0,0.14991581]
[1767126089043,0.01133427,88228.0,88216.0,0.13858]
[1767126089242,0.01133427,88228.0,88216.0,0.14991581]
[1767126089457,0.46334305,88230.0,88216.0,0.14991581]
[1767126089786,0.01133414,88229.0,88217.0,0.01133568]
[1767126089977,0.01133414,88229.0,88216.0,0.14991581]
[1767126090327,0.01133414,88229.0,88217.0,0.01133568]
[1767126090553,0.46334305,88230.0,88217.0,0.01133568]
[1767126090773,0.01133414,88229.0,88216.0,0.14991581]
[1767126092236,0.01133414,88229.0,88217.0,0.01133568]
[1767126092715,0.01133414,88229.0,88216.0,0.14991581]
[1767126093122,0.45200904,88230.0,88218.0,0.01133555]
[1767126093643,0.46334305,88230.0,88217.0,0.01133568]
[1767126094729,0.45200904,88230.0,88218.0,0.01133555]
[1767126095591,0.45200904,88230.0,88206.0,0.05668504]
[1767126095592,0.05667585,88221.0,88206.0,0.05668504]
[1767126095942,0.14375,88216.0,88206.0,0.01136]
[1767126096294,0.15508581,88216.0,88206.0,0.01136]
[1767126096503,0.14375,88216.0,88206.0,0.01136]
[1767126097549,0.15508581,88216.0,88206.0,0.01136]
[1767126097752,0.06801691,88214.0,88200.0,0.1387281]
[1767126097908,0.01133606,88214.0,88200.0,0.16142596]
[1767126098101,0.14375,88216.0,88203.0,0.01133748]
[1767126098544,0.14375,88216.0,88205.0,0.01133722]
[1767126098725,0.14375,88216.0,88206.0,0.01133709]
[1767126098924,0.14375,88216.0,88207.0,0.01133696]
[1767126099123,0.14375,88216.0,88206.0,0.01133709]
[1767126099669,0.14375,88216.0,88207.0,0.01133696]
[1767126101358,0.13378818,88216.0,88208.0,0.01133684]
[1767126101679,0.13378818,88216.0,88207.0,0.01133696]
[1767126105504,0.13378818,88216.0,88208.0,0.01133684]
[1767126105799,0.13378818,88216.0,88207.0,0.01133696]
[1767126106297,0.13378818,88216.0,88208.0,0.01133684]
[1767126107471,0.13378818,88216.0,88207.0,0.01133696]
[1767126107959,0.13378818,88216.0,88208.0,0.01133684]
[1767126108174,0.13378818,88216.0,88207.0,0.01133696]
[1767126108432,0.13378818,88216.0,88208.0,0.01133684]
[1767126109009,0.13378818,88216.0,88209.0,0.01133671]
[1767126109215,0.13378818,88216.0,88208.0,0.01133684]
[1767126110246,0.12680182,88216.0,88208.0,0.01133684]
[1767126111613,0.4743488,88220.0,88207.0,0.01133696]
[1767126111819,0.4743488,88220.0,88208.0,0.01133684]
[1767126112067,0.61038351,88220.0,88208.0,0.01133684]
[1767126112228,0.61038351,88220.0,88209.0,0.01133671]
[1767126112429,0.6217188,88220.0,88208.0,0.01133684]
[1767126112646,0.61038351,88220.0,88208.0,0.01133684]
[1767126113046,0.61038351,88220.0,88207.0,0.06246061]
[1767126113274,0.6217188,88220.0,88208.0,0.01133684]
[1767126113477,0.6217188,88220.0,88207.0,0.00577614]
[1767126113833,0.61038351,88220.0,88208.0,0.01133684]
[1767126114354,0.61038351,88220.0,88209.0,0.01133671]
[1767126115628,0.61038351,88220.0,88208.0,0.01133684]
[1767126115834,0.6217188,88220.0,88207.0,0.00577614]
[1767126116036,0.61038351,88220.0,88208.0,0.01133684]
[1767126116238,0.01133542,88219.0,88207.0,0.01133696]
[1767126116443,0.6217188,88220.0,88207.0,0.01133696]
[1767126116844,0.61038351,88220.0,88208.0,0.01133684]
[1767126117151,0.6217188,88220.0,88207.0,0.01133696]
[1767126117346,0.61038351,88220.0,88208.0,0.01133684]
[1767126118452,0.6217188,88220.0,88206.0,0.06802214]
[1767126118817,0.6217188,88220.0,88208.0,0.01133684]
[1767126119718,0.6217188,88220.0,88207.0,0.01133696]
[1767126120764,0.01133542,88219.0,88206.0,0.01133709]
[1767126120967,0.01133671,88209.0,88201.0,0.14122]
[1767126121166,0.01133671,88209.0,88200.0,0.0001481]
[1767126121167,0.06802397,88205.0,88200.0,0.0001481]
[1767126121371,0.06802397,88205.0,88191.0,0.0001481]
[1767126121372,0.01133786,88200.0,88191.0,0.0001481]
[1767126121770,0.01133799,88199.0,88191.0,0.0001481]
[1767126121946,0.14346,88200.0,88191.0,0.0001481]
[1767126123772,0.05668541,88207.0,88200.0,0.000549]
[1767126123974,0.02269709,88206.0,88192.0,0.15255889]
[1767126124172,0.01133722,88205.0,88193.0,0.01133876]
[1767126124392,0.01133722,88205.0,88192.0,0.14122]
[1767126124598,0.01133722,88205.0,88192.0,0.15255889]
[1767126124798,0.01133735,88204.0,88192.0,0.14122]
[1767126124995,0.01133722,88205.0,88192.0,0.15255889]
[1767126125784,0.01133735,88204.0,88192.0,0.14122]
[1767126126169,0.01133722,88205.0,88192.0,0.15255889]
[1767126126765,0.01133735,88204.0,88192.0,0.14122]
[1767126127763,0.01133748,88203.0,88192.0,0.14122]
[1767126127952,0.01133735,88204.0,88192.0,0.14122]
[1767126128089,0.01133748,88203.0,88192.0,0.14122]
[1767126128296,0.01133735,88204.0,88192.0,0.14122]
[1767126128496,0.01133748,88203.0,88192.0,0.14122]
[1767126128894,0.01133786,88200.0,88191.0,0.0001481]
[1767126129447,0.14346,88201.0,88191.0,0.0001481]
[1767126129804,0.14346,88201.0,88191.0,0.01148712]
[1767126130018,0.14346,88201.0,88191.0,0.0001481]
[1767126130220,0.45165351,88202.0,88191.0,0.0001481]
[1767126131239,0.01133773,88201.0,88191.0,0.0001481]
[1767126131564,0.46299112,88202.0,88191.0,0.0001481]
[1767126131759,0.01133773,88201.0,88191.0,0.0001481]
[1767126132309,0.01133786,88200.0,88191.0,0.0001481]
[1767126132917,0.01133773,88201.0,88191.0,0.0001481]
[1767126133173,0.01133786,88200.0,88191.0,0.0001481]
[1767126133355,0.01133773,88201.0,88191.0,0.0001481]
[1767126133712,0.45165351,88202.0,88191.0,0.0001481]
[1767126133916,0.46299112,88202.0,88191.0,0.0001481]
[1767126134324,0.01133773,88201.0,88191.0,0.0001481]
[1767126135486,0.01133786,88200.0,88190.0,0.0090702]
[1767126135698,0.01133773,88201.0,88190.0,0.0090702]
[1767126135884,0.01133786,88200.0,88190.0,0.0090702]
[1767126136275,0.01133773,88201.0,88190.0,0.00902929]
[1767126136848,0.01133812,88198.0,88190.0,0.00902929]
[1767126137397,0.01133786,88200.0,88190.0,0.00902929]
[1767126137962,0.01133773,88201.0,88190.0,0.00902929]
[1767126139537,0.01133786,88200.0,88190.0,0.00902929]
[1767126139746,0.60011112,88202.0,88190.0,0.00902929]
[1767126140893,0.58877351,88202.0,88190.0,0.00902929]
[1767126141311,0.60011112,88202.0,88190.0,0.00902929]
[1767126141964,0.60011112,88202.0,88189.0,0.01133928]
[1767126141965,0.01133773,88201.0,88187.0,0.01133953]
[1767126142166,0.60011112,88202.0,88189.0,0.01133928]
[1767126142563,0.58877351,88202.0,88190.0,0.01133915]
[1767126142941,0.60011112,88202.0,88189.0,0.01144603]
[1767126143348,0.45165351,88202.0,88189.0,0.15101603]
[1767126143766,0.45165351,88202.0,88189.0,0.13967675]
[1767126144485,0.4519802,88200.0,88190.0,0.01133915]
[1767126144692,0.4514312,88200.0,88190.0,0.15090915]
[1767126144888,0.4514312,88200.0,88190.0,0.13957]
[1767126145093,0.4514312,88200.0,88190.0,0.15090915]
[1767126145418,0.4514312,88200.0,88190.0,0.13957]
[1767126145592,0.4514312,88200.0,88190.0,0.15090915]
[1767126145845,0.4514312,88200.0,88191.0,0.01133902]
[1767126146167,0.4514312,88200.0,88190.0,0.15090915]
[1767126146494,0.4514312,88200.0,88191.0,0.01133902]
[1767126146699,0.4514312,88200.0,88190.0,0.13957]
[1767126147401,0.4514312,88200.0,88190.0,0.15090915]
[1767126149175,0.4514312,88200.0,88191.0,0.01133902]
[1767126149695,0.4514312,88200.0,88190.0,0.15090915]
[1767126149839,0.4514312,88200.0,88191.0,0.15090902]
[1767126150033,0.4514312,88200.0,88192.0,0.13957]
[1767126150425,0.4519802,88202.0,88192.0,0.13957]
[1767126151534,0.46331781,88202.0,88192.0,0.13957]
[1767126151747,0.4519802,88202.0,88192.0,0.13957]
[1767126152196,0.4519802,88202.0,88192.0,0.15090889]
[1767126152407,0.4519802,88202.0,88192.0,0.13957]
[1767126152542,0.4519802,88202.0,88192.0,0.15090889]
[1767126153107,0.4519802,88202.0,88192.0,0.13957]
[1767126153343,0.4519802,88202.0,88192.0,0.15090889]
[1767126153698,0.4519802,88202.0,88193.0,0.01133876]
[1767126157752,0.4519802,88202.0,88192.0,0.15090889]
[1767126158552,0.4519802,88202.0,88193.0,0.01133876]
[1767126159156,0.4519802,88202.0,88192.0,0.15090889]
[1767126159378,0.02269709,88206.0,88193.0,0.01133876]
[1767126159910,0.01133722,88205.0,88192.0,0.15090889]
[1767126160061,0.01133722,88205.0,88193.0,0.01133876]
[1767126160262,0.01133722,88205.0,88192.0,0.15090889]
[1767126161055,0.02269709,88206.0,88193.0,0.01133876]
[1767126161390,0.02269709,88206.0,88192.0,0.15090889]
[1767126161391,0.01133722,88205.0,88192.0,0.15090889]
[1767126161589,0.01133722,88205.0,88193.0,0.01133876]
[1767126163101,0.01133722,88205.0,88192.0,0.15090889]
[1767126163298,0.01133735,88204.0,88192.0,0.15090889]
[1767126163903,0.01133761,88202.0,88192.0,0.13957]
[1767126164107,0.01133735,88204.0,88190.0,0.01136]
[1767126164561,0.01133722,88205.0,88191.0,0.01133902]
[1767126164952,0.01133735,88204.0,88191.0,0.01133902]
[1767126165147,0.01133722,88205.0,88191.0,0.01133902]
[1767126165350,0.02269709,88206.0,88191.0,0.01133902]
[1767126165671,0.02269709,88206.0,88193.0,0.01133876]
[1767126165858,0.01133722,88205.0,88192.0,0.01133889]
[1767126167196,0.01133735,88204.0,88191.0,0.01133902]
[1767126167573,0.01133735,88204.0,88192.0,0.01133889]
[1767126167756,0.01133735,88204.0,88191.0,0.01133902]
[1767126168093,0.01133722,88205.0,88192.0,0.01133889]
[1767126168791,0.01133735,88204.0,88191.0,0.01133902]
[1767126169096,0.01133722,88205.0,88192.0,0.01133889]
[1767126170158,0.01133735,88204.0,88191.0,0.01133902]
[1767126170679,0.01133722,88205.0,88191.0,0.01133902]
[1767126171347,0.01133722,88205.0,88192.0,0.01133889]
[1767126172395,0.01133735,88204.0,88191.0,0.01133902]
[1767126172759,0.01133722,88205.0,88192.0,0.01133889]
[1767126173388,0.01133735,88204.0,88191.0,0.01133902]
[1767126174277,0.01133722,88205.0,88192.0,0.01133889]
[1767126174464,0.02269709,88206.0,88192.0,0.01133889]
[1767126175697,0.01133722,88205.0,88192.0,0.01133889]
[1767126176110,0.01133722,88205.0,88193.0,0.01133876]
[1767126176443,0.01133722,88205.0,88192.0,0.15440889]
[1767126177363,0.01133735,88204.0,88192.0,0.14307]
[1767126177510,0.01133748,88203.0,88192.0,0.14307]
[1767126178137,0.01133799,88199.0,88192.0,0.14307]
[1767126178342,0.15137789,88192.0,88189.0,0.00010675]
[1767126178546,0.01133915,88190.0,88180.0,0.01136]
[1767126178743,0.01142376,88190.0,88180.0,0.01136]
[1767126178960,8.461e-05,88190.0,88180.0,0.01136]
[1767126181739,0.01142376,88190.0,88180.0,0.01136]
[1767126181944,8.461e-05,88190.0,88180.0,0.01136]
[1767126182958,0.01142376,88190.0,88180.0,0.01136]
[1767126183369,0.14295,88183.0,88173.0,0.00071159]
[1767126183611,0.01134069,88178.0,88173.0,0.00031059]
[1767126183807,0.06804313,88180.0,88173.0,0.00031059]
[1767126184005,0.01134056,88179.0,88173.0,0.00031059]
[1767126184207,0.01134044,88180.0,88173.0,0.00031059]
[1767126184789,0.01134056,88179.0,88173.0,0.00031059]
[1767126185023,0.01134044,88180.0,88173.0,0.00031059]
[1767126185202,0.01134069,88178.0,88173.0,0.00031059]
[1767126185564,0.01134044,88180.0,88173.0,0.00031059]
[1767126185705,0.01134056,88179.0,88173.0,0.00031059]
[1767126185904,0.01134044,88180.0,88173.0,0.00031059]
[1767126186533,0.5949302,88183.0,88173.0,0.00031059]
[1767126186704,0.01133748,88203.0,88185.0,0.05669898]
[1767126186906,0.0001481,88205.0,88190.0,0.14594]
[1767126186907,0.01148532,88205.0,88190.0,0.14594]
[1767126187144,0.4519802,88200.0,88190.0,0.14594]
[1767126187513,0.4519802,88200.0,88191.0,0.14594]
[1767126187714,0.46331806,88200.0,88191.0,0.14594]
[1767126188332,0.01133799,88199.0,88191.0,0.14594]
[1767126188742,0.46331806,88200.0,88191.0,0.14594]
[1767126189854,0.01133812,88198.0,88191.0,0.14594]
[1767126190056,0.06802886,88198.0,88187.0,0.01136]
[1767126190219,0.4519802,88197.0,88187.0,0.01136]
[1767126190826,0.52001029,88197.0,88187.0,0.01136]
[1767126191146,0.01133838,88196.0,88187.0,0.01136]
[1767126191343,0.46331845,88197.0,88187.0,0.01136]
[1767126191542,0.46331845,88197.0,88177.0,0.01136]
[1767126191543,0.01133953,88187.0,88177.0,0.01136]
[1767126191797,0.01133953,88187.0,88173.0,0.15774003]
[1767126191798,0.14295,88175.0,88173.0,0.00045869]
[1767126191909,0.14295,88175.0,88162.0,0.01136]
[1767126191910,0.05670766,88172.0,88162.0,0.01136]
[1767126192110,0.01079246,88172.0,88162.0,0.01136]
[1767126192354,0.01134121,88174.0,88162.0,0.01136]
[1767126192819,0.4519802,88175.0,88162.0,0.01136]
[1767126192820,0.4519802,88175.0,88174.0,0.00055]
[1767126193134,0.01134082,88177.0,88165.0,0.1460881]
[1767126193448,0.4519802,88175.0,88165.0,0.1460881]
[1767126193769,0.4519802,88175.0,88165.0,0.14594]
[1767126193964,0.4519802,88175.0,88165.0,0.15728236]
[1767126194169,0.4519802,88175.0,88165.0,0.14594]
[1767126194673,0.4519802,88175.0,88166.0,0.14594]
[1767126195057,0.4519802,88175.0,88166.0,0.15728224]
[1767126195451,0.4519802,88175.0,88166.0,0.14594]
[1767126196486,0.4519802,88175.0,88166.0,0.15728224]
[1767126197698,0.4519802,88175.0,88167.0,0.01134211]
[1767126197864,0.4519802,88177.0,88166.0,0.15728224]
[1767126198652,0.4519802,88177.0,88167.0,0.01134211]
[1767126198847,0.4633402,88180.0,88168.0,0.01134198]
[1767126199253,0.4519802,88178.0,88168.0,0.01134198]
[1767126199484,0.4519802,88178.0,88167.0,0.01134211]
[1767126200095,0.4519802,88178.0,88168.0,0.01134198]
[1767126200498,0.4519802,88178.0,88167.0,0.01134211]
[1767126200697,0.47468064,88180.0,88167.0,0.01134211]
[1767126200909,0.4519802,88177.0,88168.0,0.01134198]
[1767126201258,0.4519802,88177.0,88167.0,0.01134211]
[1767126202507,0.4519802,88177.0,88166.0,0.15728224]
[1767126203131,0.4519802,88177.0,88162.0,0.01136]
[1767126203343,0.01134082,88177.0,88163.0,0.15053262]
[1767126203525,0.4519802,88172.0,88164.0,0.01134249]
[1767126203718,0.4519802,88172.0,88167.0,0.01134211]
[1767126203921,0.4519802,88172.0,88167.0,0.13919]
[1767126204581,0.01134082,88177.0,88167.0,0.13919]
[1767126204747,0.01134069,88178.0,88167.0,0.13919]
[1767126205127,0.01134082,88177.0,88167.0,0.13919]
[1767126205308,0.01134069,88178.0,88167.0,0.13919]
[1767126205829,0.01134082,88177.0,88167.0,0.13919]
[1767126206504,0.4749343,88180.0,88167.0,0.15053211]
[1767126206705,0.01134056,88179.0,88167.0,0.13919]
[1767126206867,0.4749343,88180.0,88167.0,0.13919]
[1767126207184,0.4749343,88180.0,88167.0,0.15053211]
[1767126207360,0.01134056,88179.0,88167.0,0.13919]
[1767126208120,0.46359386,88180.0,88169.0,0.13919]
[1767126208648,0.46359386,88180.0,88169.0,0.15053185]
[1767126208848,0.46359386,88180.0,88169.0,0.13919]
[1767126209349,0.4749343,88180.0,88169.0,0.13919]
[1767126209548,0.02270044,88180.0,88169.0,0.13919]
[1767126209839,0.46359386,88180.0,88169.0,0.13919]
[1767126209965,0.4749343,88180.0,88169.0,0.13919]
[1767126210555,0.46359386,88180.0,88169.0,0.13919]
[1767126210965,0.4749343,88180.0,88169.0,0.13919]
[1767126211177,0.01134056,88179.0,88169.0,0.13919]
[1767126211578,0.4749343,88180.0,88169.0,0.13919]
[1767126212600,0.01134056,88179.0,88169.0,0.13919]
[1767126214806,0.46359386,88180.0,88169.0,0.13919]
[1767126215205,0.01134056,88179.0,88169.0,0.13919]
[1767126215428,0.4749343,88180.0,88169.0,0.13919]
[1767126215839,0.01134056,88179.0,88169.0,0.13919]
[1767126216657,0.4749343,88180.0,88169.0,0.13919]
[1767126217238,0.01134069,88178.0,88164.0,0.01134249]
[1767126217431,0.01134082,88177.0,88165.0,0.15053236]
[1767126217636,0.01134069,88178.0,88165.0,0.15053236]
[1767126217836,0.01134069,88178.0,88166.0,0.15053224]
[1767126218237,0.01134069,88178.0,88166.0,0.13919]
[1767126222199,0.01134056,88179.0,88166.0,0.13919]
[1767126222603,0.01134069,88178.0,88166.0,0.13919]
[1767126223224,0.01134056,88179.0,88166.0,0.15053224]
[1767126223808,0.01134056,88179.0,88166.0,0.13919]
[1767126224011,0.01134069,88178.0,88166.0,0.15053224]
[1767126224199,0.01134069,88178.0,88166.0,0.13919]
[1767126224897,0.01134082,88177.0,88166.0,0.13919]
[1767126226250,0.01134095,88176.0,88166.0,0.13919]
[1767126226469,0.01134056,88179.0,88166.0,0.15053224]
[1767126226639,0.53163683,88180.0,88166.0,0.15053224]
[1767126226640,0.53163653,88180.0,88166.0,0.13919]
[1767126227026,0.4749343,88180.0,88166.0,0.13919]
[1767126227229,0.01134056,88179.0,88166.0,0.15053224]
[1767126228023,0.46359386,88180.0,88166.0,0.15053224]
[1767126228225,0.46359386,88180.0,88168.0,0.01134198]
[1767126228575,0.45223386,88180.0,88171.0,0.14149]
[1767126229214,0.4635743,88180.0,88171.0,0.14149]
[1767126229704,0.45223386,88180.0,88171.0,0.14149]
[1767126230504,0.4635743,88180.0,88171.0,0.14149]
[1767126230834,0.45223386,88180.0,88171.0,0.14149]
[1767126232646,0.4635743,88180.0,88171.0,0.14149]
[1767126234067,0.45223386,88180.0,88171.0,0.14149]
[1767126234624,0.4635743,88180.0,88171.0,0.14149]
[1767126235165,0.45223386,88180.0,88171.0,0.14149]
[1767126238865,0.4635743,88180.0,88171.0,0.14149]
[1767126239042,0.45223386,88180.0,88171.0,0.14149]
[1767126239882,0.4635743,88180.0,88171.0,0.14149]
[1767126240504,0.50893647,88180.0,88164.0,0.14149]
[1767126240671,0.01134056,88179.0,88164.0,0.14149]
[1767126240868,0.01134082,88177.0,88165.0,0.00261]
[1767126241680,0.52027691,88180.0,88166.0,0.01134224]
[1767126241882,0.01134056,88179.0,88166.0,0.01134224]
[1767126242193,0.4635743,88180.0,88166.0,0.01134224]
[1767126242394,0.01134134,88173.0,88165.0,0.00261]
[1767126242643,0.01134146,88172.0,88165.0,0.00261]
[1767126242809,0.01134198,88168.0,88165.0,0.00206]
[1767126242967,0.06805251,88168.0,88165.0,0.00206]
[1767126243169,0.14401,88170.0,88165.0,0.00206]
[1767126243364,0.01136,88174.0,88165.0,0.00206]
[1767126243564,0.01136,88175.0,88165.0,0.14355]
[1767126243830,0.02270108,88175.0,88165.0,0.14355]
[1767126243982,0.01136,88175.0,88165.0,0.14355]
[1767126244180,0.02270108,88175.0,88165.0,0.14355]
[1767126245207,0.47493494,88175.0,88165.0,0.14355]
[1767126247037,0.53164045,88175.0,88165.0,0.14355]
[1767126247240,0.01134121,88174.0,88165.0,0.14355]
[1767126247387,0.47493494,88175.0,88165.0,0.14355]
[1767126248087,0.46359386,88175.0,88165.0,0.14355]
[1767126248286,0.01133966,88186.0,88175.0,0.000549]
[1767126248528,0.01133966,88186.0,88175.0,0.1452]
[1767126248529,0.46359386,88185.0,88175.0,0.1452]
[1767126248721,0.05670074,88183.0,88166.0,0.15654224]
[1767126248938,0.3135743,88180.0,88167.0,0.1452]
[1767126249156,0.1635743,88180.0,88168.0,0.11839198]
[1767126249374,0.0565243,88180.0,88168.0,0.01134198]
[1767126249574,0.01134056,88179.0,88167.0,0.01134211]
[1767126249777,0.0565243,88180.0,88167.0,0.01134211]
[1767126250192,0.0565243,88180.0,88168.0,0.01134198]
[1767126250396,0.04518386,88180.0,88168.0,0.01134198]
[1767126250620,0.04518386,88180.0,88169.0,0.01134185]
[1767126250858,0.04518386,88180.0,88168.0,0.01134198]
[1767126251071,0.0565243,88180.0,88167.0,0.01134211]
[1767126251552,0.01134044,88180.0,88167.0,0.01134211]
[1767126251822,0.4635743,88180.0,88167.0,0.01134211]
[1767126252179,0.52027681,88180.0,88166.0,0.01134224]
[1767126252362,0.4635743,88180.0,88167.0,0.01134211]
[1767126253809,0.01134056,88179.0,88166.0,0.01134224]
[1767126254007,0.45223386,88180.0,88168.0,0.01134198]
[1767126254232,0.4635743,88180.0,88167.0,0.01134211]
[1767126254428,0.01134044,88180.0,88168.0,0.01134198]
[1767126254743,0.01134044,88180.0,88167.0,0.01134211]
[1767126255542,0.4635743,88180.0,88167.0,0.01134211]
[1767126257036,0.6084443,88180.0,88167.0,0.01134211]
[1767126257238,0.59710386,88180.0,88167.0,0.0680523]
[1767126257443,0.01133992,88184.0,88167.0,0.0680523]
[1767126257444,0.01133992,88184.0,88168.0,0.06805139]
[1767126257774,0.14487,88182.0,88180.0,0.00055]
[1767126257981,0.15621018,88182.0,88170.0,0.01134172]
[1767126258279,0.15621018,88182.0,88169.0,0.01134185]
[1767126258480,0.15621018,88182.0,88170.0,0.01134172]
[1767126258924,0.14487,88182.0,88169.0,0.01134185]
[1767126259127,0.15621018,88182.0,88168.0,0.01134198]
[1767126259332,0.14487,88178.0,88166.0,0.01134224]
[1767126259626,0.14487,88178.0,88167.0,0.01134211]
[1767126259828,0.14487,88178.0,88169.0,0.01134185]
[1767126260059,0.14432,88178.0,88170.0,0.01134172]
[1767126260633,0.14432,88178.0,88169.0,0.01134185]
[1767126260999,0.14432,88178.0,88168.0,0.01134198]
[1767126261204,0.14432,88178.0,88169.0,0.01134185]
[1767126261683,0.14432,88178.0,88168.0,0.01134198]
[1767126262128,0.14432,88178.0,88169.0,0.01134185]
[1767126262726,0.14432,88178.0,88168.0,0.01134198]
[1767126264192,0.14432,88178.0,88167.0,0.06805229]
[1767126264193,0.14432,88178.0,88167.0,0.01134211]
[1767126264790,0.14432,88178.0,88168.0,0.01134198]
[1767126265603,0.14432,88178.0,88167.0,0.01134211]
[1767126266047,0.14432,88178.0,88166.0,0.01134224]
[1767126266439,0.15566069,88178.0,88165.0,0.01340236]
[1767126266640,0.01134095,88176.0,88165.0,0.00206]
[1767126266808,0.45217371,88175.0,88165.0,0.00206]
[1767126267724,0.14487,88176.0,88165.0,0.00206]
[1767126269229,0.15621095,88176.0,88165.0,0.00206]
[1767126269841,0.01134108,88175.0,88165.0,0.00206]
[1767126270059,0.15621095,88176.0,88165.0,0.00206]
[1767126270345,0.01134108,88175.0,88165.0,0.00206]
[1767126270864,0.15621108,88175.0,88165.0,0.00206]
[1767126271269,0.01134146,88172.0,88165.0,0.00206]
[1767126271493,0.05670605,88174.0,88153.0,0.000147]
[1767126271494,0.15621249,88164.0,88153.0,0.000147]
[1767126271693,0.15621249,88164.0,88158.0,0.01136]
[1767126271694,0.14487,88159.0,88158.0,0.01136]
[1767126272036,0.15621288,88161.0,88158.0,0.01136]
[1767126272237,0.2129262,88163.0,88158.0,0.01136]
[1767126272441,0.15621262,88163.0,88158.0,0.010261]
[1767126273292,0.14487,88163.0,88158.0,0.010261]
[1767126273491,0.15621262,88163.0,88158.0,0.010261]
[1767126273693,0.14487,88163.0,88158.0,0.010261]
[1767126275393,0.15621262,88163.0,88158.0,0.010261]
[1767126275610,0.01134275,88162.0,88158.0,0.010261]
[1767126275748,0.14487,88163.0,88158.0,0.010261]
[1767126276089,0.01134275,88162.0,88158.0,0.010261]
[1767126276640,0.15621262,88163.0,88158.0,0.010261]
[1767126276885,0.15621275,88162.0,88158.0,0.010261]
[1767126277556,0.15621275,88162.0,88146.0,0.05672364]
[1767126277557,0.01134455,88148.0,88145.0,0.0004]
[1767126277787,0.15621455,88148.0,88145.0,0.0004]
[1767126278138,0.14487,88146.0,88145.0,0.0004]
[1767126278821,0.15621455,88148.0,88145.0,0.0004]
[1767126279723,0.15621455,88148.0,88141.0,0.01136]
[1767126279926,0.14487,88146.0,88141.0,0.01136]
[1767126281087,0.01134455,88148.0,88141.0,0.01136]
[1767126281293,0.14487,88148.0,88141.0,0.01136]
[1767126281504,0.01134468,88147.0,88141.0,0.01136]
[1767126281710,0.15511555,88148.0,88141.0,0.01136]
[1767126282723,0.01134468,88147.0,88141.0,0.01136]
[1767126283066,0.15511555,88148.0,88141.0,0.01136]
[1767126283428,0.143771,88148.0,88141.0,0.01136]
[1767126283629,0.15511555,88148.0,88141.0,0.01136]
[1767126286594,0.01134468,88147.0,88141.0,0.00903]
[1767126286953,0.15933455,88148.0,88141.0,0.00903]
[1767126287635,0.14799,88148.0,88141.0,0.00903]
[1767126288237,0.15933455,88148.0,88141.0,0.00903]
[1767126290097,0.14799,88148.0,88141.0,0.00903]
[1767126291611,0.01134442,88149.0,88141.0,0.00903]
[1767126291814,0.05672199,88150.0,88141.0,0.00903]
[1767126291815,0.15933378,88154.0,88149.0,0.000549]
[1767126291995,0.14799,88153.0,88149.0,0.000549]
[1767126292191,0.14799,88153.0,88141.0,0.00903]
[1767126292192,0.15933391,88153.0,88141.0,0.00903]
[1767126292683,0.14799,88153.0,88141.0,0.00903]
[1767126293629,0.15933429,88150.0,88141.0,0.00903]
[1767126293873,0.14799,88150.0,88141.0,0.00903]
[1767126295511,0.15933429,88150.0,88142.0,0.01136]
[1767126296791,0.10933429,88150.0,88142.0,0.01136]
[1767126297157,0.01134442,88149.0,88142.0,0.01136]
[1767126297357,0.01134404,88152.0,88149.0,0.000549]
[1767126297542,0.15933391,88153.0,88149.0,0.000549]
[1767126297742,0.15933391,88153.0,88142.0,0.01136]
[1767126297979,0.14799,88153.0,88142.0,0.01136]
[1767126298380,0.14799,88153.0,88142.0,0.02270532]
[1767126299184,0.14799,88153.0,88142.0,0.01136]
[1767126299908,0.14799,88153.0,88142.0,0.02270532]